fUST/lending_fUST_20240525
["ID","MTS","AMOUNT","RATE_DAILY","PERIOD"]
[327917457,1716625866427,-500.0,0.00025753,6]
[327917458,1716625866437,-500.0,0.00025753,6]
[327917459,1716625866446,-608.21,0.00025753,6]
[327917460,1716625866456,-500.0,0.00025753,6]
[327917461,1716625866465,-500.0,0.00025753,6]
[327917462,1716625866474,-4026.36,0.00025753,6]
[327917463,1716625866483,-250.0,0.00025753,6]
[327917464,1716625866493,-509.49,0.00025753,6]
[327917465,1716625866503,-500.0,0.00025753,6]
[327917466,1716625866513,-718.05,0.00025753,6]
[327917467,1716625866523,-500.0,0.00025753,6]
[327917468,1716625866532,-4651.21,0.00025753,6]
[327917469,1716625866542,-500.0,0.00025753,6]
[327917470,1716625866551,-807.26,0.00025753,6]
[327917471,1716625866560,-951.39,0.00025753,6]
[327917472,1716625866570,-500.0,0.00025753,6]
[327917473,1716625866579,-866.31,0.00025753,6]
[327917474,1716625866588,-1651.56,0.00025753,6]
[327917475,1716625866598,-500.0,0.00025753,6]
[327917476,1716625866609,-500.0,0.00025753,6]
[327917477,1716625866623,-500.0,0.00025753,6]
[327917478,1716625866634,-728.56,0.00025753,6]
[327917479,1716625866643,-426.597759,0.00025753,6]
[327917480,1716625866653,-500.0,0.00025753,6]
[327917481,1716625866664,-5083.02,0.00025753,6]
[327917482,1716625866675,-500.0,0.00025753,6]
[327917483,1716625866685,-500.0,0.00025753,6]
[327917484,1716625866695,-500.0,0.00025753,6]
[327917485,1716625866704,-500.0,0.00025753,6]
[327917486,1716625866714,-500.0,0.00025753,6]
[327917487,1716625866724,-500.0,0.00025753,6]
[327917488,1716625866733,-606.33,0.00025753,6]
[327917489,1716625866742,-500.0,0.00025753,6]
[327917490,1716625866752,-500.0,0.00025753,6]
[327917491,1716625866762,-500.0,0.00025753,6]
[327917492,1716625866771,-500.0,0.00025753,6]
[327917493,1716625866780,-500.0,0.00025753,6]
[327917494,1716625866789,-500.0,0.00025753,6]
[327917495,1716625866799,-160.0,0.00025829,8]
[327917496,1716625866808,-300.0,0.000259,2]
[327917497,1716625866818,-11163.7035002,0.00026,2]
[327917498,1716625866831,-155.31351437,0.00026,2]
[327917499,1716625866841,-500.0,0.00026027,7]
[327917500,1716625866850,-659.81,0.00026027,7]
[327917501,1716625866859,-500.0,0.00026027,7]
[327917502,1716625866869,-500.0,0.00026027,7]
[327917503,1716625866878,-768.52,0.00026027,7]
[327917504,1716625866887,-500.0,0.00026027,7]
[327917505,1716625866898,-500.0,0.00026027,7]
[327917506,1716625866909,-500.0,0.00026027,7]
[327917507,1716625866919,-500.0,0.00026027,7]
[327917508,1716625866929,-500.0,0.00026027,7]
[327917509,1716625866938,-500.0,0.00026027,7]
[327917510,1716625866947,-500.0,0.00026027,7]
[327917511,1716625866957,-500.0,0.00026027,7]
[327917512,1716625866966,-500.0,0.00026027,7]
[327917513,1716625866975,-500.0,0.00026027,7]
[327917514,1716625866984,-500.0,0.00026027,7]
[327917515,1716625866993,-500.0,0.00026027,7]
[327917516,1716625867003,-500.0,0.00026027,7]
[327917517,1716625867012,-500.0,0.00026027,7]
[327917518,1716625867021,-537.15,0.00026027,7]
[327917519,1716625867031,-500.0,0.00026027,7]
[327917520,1716625867040,-500.0,0.00026027,7]
[327917521,1716625867049,-500.0,0.00026027,7]
[327917522,1716625867058,-151.28863004,0.00026027,7]
[327917523,1716625867067,-500.0,0.00026027,7]
[327917524,1716625867077,-500.0,0.00026027,7]
[327917525,1716625867086,-570.39,0.00026027,7]
[327917526,1716625867095,-500.0,0.00026027,7]
[327917527,1716625867104,-500.0,0.00026027,7]
[327917528,1716625867114,-500.0,0.00026027,7]
[327917529,1716625867123,-500.0,0.00026027,7]
[327917530,1716625867133,-500.0,0.00026027,7]
[327917531,1716625867142,-500.0,0.00026027,7]
[327917532,1716625867151,-500.0,0.00026027,7]
[327917533,1716625867160,-500.0,0.00026027,7]
[327917534,1716625867170,-500.0,0.00026027,7]
[327917535,1716625867180,-500.0,0.00026027,7]
[327917536,1716625867189,-500.0,0.00026027,7]
[327917537,1716625867198,-500.0,0.00026027,7]
[327917538,1716625867207,-500.0,0.00026027,7]
[327917539,1716625867217,-721.25,0.00026027,7]
[327917540,1716625867226,-500.0,0.00026027,7]
[327917541,1716625867236,-538.2527201,0.00026027,7]
[327917542,1716625867246,-500.0,0.00026027,7]
[327917543,1716625867255,-964.17,0.00026027,7]
[327917544,1716625867264,-500.0,0.00026027,7]
[327917545,1716625867274,-500.0,0.00026027,7]
[327917546,1716625867283,-536.36,0.00026027,7]
[327917547,1716625867292,-500.0,0.00026027,2]
[327917548,1716625867301,-500.0,0.00026027,7]
[327917549,1716625867310,-500.0,0.00026027,7]
[327917550,1716625867320,-500.0,0.00026027,7]
[327917551,1716625867329,-554.71,0.00026027,7]
[327917552,1716625867338,-709.62,0.00026027,7]
[327917553,1716625867347,-500.0,0.00026027,7]
[327917554,1716625867357,-570.57,0.00026027,7]
[327917555,1716625867366,-500.0,0.00026027,7]
[327917556,1716625867375,-526.11,0.00026027,7]
[327917557,1716625867385,-500.0,0.00026027,7]
[327917558,1716625867394,-547.14,0.00026027,7]
[327917559,1716625867403,-521.18,0.00026027,7]
[327917560,1716625867412,-571.92,0.00026027,7]
[327917561,1716625867422,-500.0,0.00026027,7]
[327917562,1716625867432,-500.0,0.00026027,7]
[327917563,1716625867442,-503.18,0.00026027,7]
[327917564,1716625867534,-500.0,0.00026027,7]
[327917565,1716625867544,-2441.44,0.00026027,7]
[327917566,1716625867557,-3812.61,0.00026027,7]
[327917567,1716625867567,-500.0,0.00026027,7]
[327917568,1716625867576,-500.0,0.00026027,7]
[327917569,1716625867585,-500.0,0.00026027,7]
[327917570,1716625867595,-545.2,0.00026027,7]
[327917571,1716625867604,-500.0,0.00026027,7]
[327917572,1716625867613,-500.0,0.00026027,7]
[327917573,1716625867622,-500.0,0.00026027,7]
[327917574,1716625867631,-500.0,0.00026027,7]
[327917575,1716625867641,-500.0,0.00026027,7]
[327917576,1716625867650,-500.0,0.00026027,7]
[327917577,1716625867660,-818.85,0.00026027,7]
[327917578,1716625867671,-512.82,0.00026027,7]
[327917579,1716625867680,-500.0,0.00026027,7]
[327917580,1716625867690,-500.0,0.00026027,7]
[327917581,1716625867704,-500.0,0.00026027,7]
[327917582,1716625867713,-699.92,0.00026027,7]
[327917583,1716625867722,-625.69,0.00026027,7]
[327917584,1716625867731,-1637.53,0.00026027,7]
[327917585,1716625867740,-199.8480148,0.00026027,7]
[327917586,1716625867750,-500.0,0.00026027,7]
[327917587,1716625867759,-500.0,0.00026027,7]
[327917588,1716625867769,-500.0,0.00026027,7]
[327917589,1716625867778,-312.5211195,0.00026027,7]
[327917590,1716625867787,-500.0,0.00026027,7]
[327917591,1716625867796,-692.07,0.00026027,7]
[327917592,1716625867805,-1647.0,0.00026027,7]
[327917593,1716625867814,-500.0,0.00026027,7]
[327917594,1716625867828,-500.0,0.00026027,7]
[327917595,1716625867837,-500.0,0.00026027,7]
[327917596,1716625867847,-500.0,0.00026027,7]
[327917597,1716625867855,-500.0,0.00026027,7]
[327917598,1716625867866,-1590.4,0.00026027,7]
[327917599,1716625867875,-500.0,0.00026027,7]
[327917600,1716625867883,-500.0,0.00026027,7]
[327917601,1716625867892,-608.21,0.00026027,7]
[327917602,1716625867903,-500.0,0.00026027,7]
[327917603,1716625867912,-500.0,0.00026027,7]
[327917604,1716625867922,-4026.36,0.00026027,7]
[327917605,1716625867931,-250.0,0.00026027,7]
[327917606,1716625867939,-509.49,0.00026027,7]
[327917607,1716625867948,-500.0,0.00026027,7]
[327917608,1716625867957,-718.05,0.00026027,7]
[327917609,1716625867966,-500.0,0.00026027,7]
[327917610,1716625867975,-4651.21,0.00026027,7]
[327917611,1716625867983,-500.0,0.00026027,7]
[327917612,1716625867992,-807.26,0.00026027,7]
[327917613,1716625868001,-951.39,0.00026027,7]
[327917614,1716625868011,-866.31,0.00026027,7]
[327917615,1716625868020,-1651.56,0.00026027,7]
[327917616,1716625868030,-500.0,0.00026027,7]
[327917617,1716625868039,-500.0,0.00026027,7]
[327917618,1716625868048,-500.0,0.00026027,7]
[327917619,1716625868058,-728.56,0.00026027,7]
[327917620,1716625868067,-500.0,0.00026027,7]
[327917621,1716625868076,-5083.02,0.00026027,7]
[327917622,1716625868087,-503.11269469,0.00026027,7]
[327917623,1716625868097,-500.0,0.00026027,7]
[327917624,1716625868108,-163.44650478,0.00026027,7]
[327917625,1716625868118,-500.0,0.00026027,7]
[327917626,1716625868127,-500.0,0.00026027,7]
[327917627,1716625868136,-606.33,0.00026027,7]
[327917628,1716625868146,-500.0,0.00026027,7]
[327917629,1716625868156,-500.0,0.00026027,7]
[327917630,1716625868166,-500.0,0.00026027,7]
[327917631,1716625868176,-500.0,0.00026027,7]
[327917632,1716625868185,-500.0,0.00026027,7]
[327917633,1716625868195,-500.0,0.00026027,7]
[327917634,1716625868205,-160.0,0.00026084,9]
[327917635,1716625868215,-893.24471743,0.00026111,2]
[327917636,1716625868225,-160.0,0.000263,2]
[327917637,1716625868234,-282.0,0.000263,2]
[327917638,1716625868243,-564.0,0.000263,2]
[327917639,1716625868252,-564.0,0.000263,2]
[327917640,1716625868263,-500.0,0.00026301,8]
[327917641,1716625868273,-659.81,0.00026301,8]
[327917642,1716625868283,-500.0,0.00026301,8]
[327917643,1716625868292,-500.0,0.00026301,8]
[327917644,1716625868301,-768.52,0.00026301,8]
[327917645,1716625868311,-500.0,0.00026301,8]
[327917646,1716625868320,-500.0,0.00026301,8]
[327917647,1716625868329,-500.0,0.00026301,8]
[327917648,1716625868339,-500.0,0.00026301,8]
[327917649,1716625868349,-500.0,0.00026301,8]
[327917650,1716625868358,-500.0,0.00026301,8]
[327917651,1716625868368,-500.0,0.00026301,8]
[327917652,1716625868378,-500.0,0.00026301,8]
[327917653,1716625868387,-500.0,0.00026301,8]
[327917654,1716625868396,-500.0,0.00026301,8]
[327917655,1716625868405,-500.0,0.00026301,8]
[327917656,1716625868414,-500.0,0.00026301,8]
[327917657,1716625868425,-500.0,0.00026301,8]
[327917658,1716625868434,-500.0,0.00026301,8]
[327917659,1716625868443,-537.15,0.00026301,8]
[327917660,1716625868451,-500.0,0.00026301,8]
[327917661,1716625868460,-500.0,0.00026301,8]
[327917662,1716625868469,-500.0,0.00026301,8]
[327917663,1716625868479,-500.0,0.00026301,8]
[327917664,1716625868488,-500.0,0.00026301,8]
[327917665,1716625868497,-570.39,0.00026301,8]
[327917666,1716625868507,-500.0,0.00026301,8]
[327917667,1716625868516,-500.0,0.00026301,8]
[327917668,1716625868525,-500.0,0.00026301,8]
[327917669,1716625868535,-153.71135304,0.00026301,8]
[327917670,1716625868544,-500.0,0.00026301,8]
[327917671,1716625868554,-500.0,0.00026301,8]
[327917672,1716625868563,-500.0,0.00026301,8]
[327917673,1716625868572,-500.0,0.00026301,8]
[327917674,1716625868582,-500.0,0.00026301,8]
[327917675,1716625868592,-500.0,0.00026301,8]
[327917676,1716625868602,-584.44270296,0.00026301,8]
[327917677,1716625868613,-500.0,0.00026301,8]
[327917678,1716625868623,-500.0,0.00026301,8]
[327917679,1716625868632,-721.25,0.00026301,8]
[327917680,1716625868643,-500.0,0.00026301,8]
[327917681,1716625868654,-500.0,0.00026301,8]
[327917682,1716625868664,-964.17,0.00026301,8]
[327917683,1716625868673,-193.0397111,0.00026301,8]
[327917684,1716625868682,-500.0,0.00026301,8]
[327917685,1716625868691,-536.36,0.00026301,8]
[327917686,1716625868701,-500.0,0.00026301,2]
[327917687,1716625868710,-500.0,0.00026301,8]
[327917688,1716625868719,-500.0,0.00026301,8]
[327917689,1716625868730,-500.0,0.00026301,8]
[327917690,1716625868742,-554.71,0.00026301,8]
[327917691,1716625868752,-709.62,0.00026301,8]
[327917692,1716625868762,-297.47690188,0.00026301,8]
[327917693,1716625868773,-570.57,0.00026301,8]
[327917694,1716625868783,-500.0,0.00026301,8]
[327917695,1716625868792,-526.11,0.00026301,8]
[327917696,1716625868804,-500.0,0.00026301,8]
[327917697,1716625868814,-547.14,0.00026301,8]
[327917698,1716625868826,-521.18,0.00026301,8]
[327917699,1716625868837,-571.92,0.00026301,8]
[327917700,1716625868847,-500.0,0.00026301,8]
[327917701,1716625868856,-500.0,0.00026301,8]
[327917702,1716625868866,-503.18,0.00026301,8]
[327917703,1716625868875,-500.0,0.00026301,8]
[327917705,1716625868886,-2441.44,0.00026301,8]
[327917706,1716625868895,-3812.61,0.00026301,8]
[327917707,1716625868907,-500.0,0.00026301,8]
[327917708,1716625868916,-500.0,0.00026301,8]
[327917709,1716625868927,-500.0,0.00026301,8]
[327917710,1716625868936,-545.2,0.00026301,8]
[327917711,1716625868945,-500.0,0.00026301,8]
[327917712,1716625868955,-500.0,0.00026301,8]
[327917713,1716625868963,-500.0,0.00026301,8]
[327917714,1716625868972,-500.0,0.00026301,8]
[327917715,1716625868981,-500.0,0.00026301,8]
[327917716,1716625868991,-500.0,0.00026301,8]
[327917717,1716625869000,-818.85,0.00026301,8]
[327917718,1716625869009,-512.82,0.00026301,8]
[327917719,1716625869018,-500.0,0.00026301,8]
[327917720,1716625869109,-500.0,0.00026301,8]
[327917721,1716625869120,-500.0,0.00026301,8]
[327917722,1716625869130,-699.92,0.00026301,8]
[327917723,1716625869139,-625.69,0.00026301,8]
[327917724,1716625869148,-1637.53,0.00026301,8]
[327917725,1716625869159,-500.0,0.00026301,8]
[327917726,1716625869169,-500.0,0.00026301,8]
[327917727,1716625869179,-500.0,0.00026301,8]
[327917728,1716625869188,-500.0,0.00026301,8]
[327917729,1716625869198,-692.07,0.00026301,8]
[327917730,1716625869207,-1647.0,0.00026301,8]
[327917731,1716625869217,-500.0,0.00026301,8]
[327917732,1716625869227,-500.0,0.00026301,8]
[327917733,1716625869237,-500.0,0.00026301,8]
[327917734,1716625869247,-500.0,0.00026301,8]
[327917735,1716625869256,-500.0,0.00026301,8]
[327917736,1716625869265,-1590.4,0.00026301,8]
[327917737,1716625869275,-417.07674713,0.00026301,8]
[327917738,1716625869284,-500.0,0.00026301,8]
[327917739,1716625869293,-608.21,0.00026301,8]
[327917740,1716625869302,-500.0,0.00026301,8]
[327917741,1716625869311,-500.0,0.00026301,8]
[327917742,1716625869321,-4026.36,0.00026301,8]
[327917743,1716625869330,-250.0,0.00026301,8]
[327917744,1716625869339,-509.49,0.00026301,8]
[327917745,1716625869348,-500.0,0.00026301,8]
[327917746,1716625869358,-718.05,0.00026301,8]
[327917747,1716625869367,-500.0,0.00026301,8]
[327917748,1716625869376,-4651.21,0.00026301,8]
[327917749,1716625869385,-500.0,0.00026301,8]
[327917750,1716625869395,-807.26,0.00026301,8]
[327917751,1716625869404,-951.39,0.00026301,8]
[327917752,1716625869413,-866.31,0.00026301,8]
[327917753,1716625869424,-1651.56,0.00026301,8]
[327917754,1716625869433,-500.0,0.00026301,8]
[327917755,1716625869442,-500.0,0.00026301,8]
[327917756,1716625869451,-500.0,0.00026301,8]
[327917757,1716625869460,-728.56,0.00026301,8]
[327917758,1716625869469,-500.0,0.00026301,8]
[327917759,1716625869478,-5083.02,0.00026301,8]
[327917760,1716625869487,-500.0,0.00026301,8]
[327917761,1716625869496,-500.0,0.00026301,8]
[327917762,1716625869506,-500.0,0.00026301,8]
[327917763,1716625869515,-606.33,0.00026301,8]
[327917764,1716625869524,-567.19588993,0.00026301,8]
[327917765,1716625869534,-500.0,0.00026301,8]
[327917766,1716625869544,-643.32320728,0.00026301,8]
[327917767,1716625869554,-534.48253319,0.00026301,8]
[327917768,1716625869563,-500.0,0.00026301,8]
[327917769,1716625869572,-500.0,0.00026301,8]
[327917770,1716625869581,-583.2496618,0.00026301,2]
[327917771,1716625869590,-291.6770573,0.00026301,2]
[327917772,1716625869599,-291.6770573,0.00026301,2]
[327917773,1716625869608,-160.0,0.00026339,10]
[327917774,1716625869617,-528.15,0.00026575,9]
[327917775,1716625869626,-500.0,0.00026575,9]
[327917776,1716625869636,-659.81,0.00026575,9]
[327917777,1716625869645,-500.0,0.00026575,9]
[327917778,1716625869655,-500.0,0.00026575,9]
[327917779,1716625869665,-768.52,0.00026575,9]
[327917780,1716625869676,-500.0,0.00026575,9]
[327917781,1716625869686,-500.0,0.00026575,9]
[327917782,1716625869695,-500.0,0.00026575,9]
[327917783,1716625869705,-500.0,0.00026575,9]
[327917784,1716625869715,-500.0,0.00026575,9]
[327917785,1716625869724,-500.0,0.00026575,9]
[327917786,1716625869734,-500.0,0.00026575,9]
[327917787,1716625869743,-500.0,0.00026575,9]
[327917788,1716625869752,-500.0,0.00026575,9]
[327917789,1716625869764,-500.0,0.00026575,9]
[327917790,1716625869774,-500.0,0.00026575,9]
[327917791,1716625869783,-500.0,0.00026575,9]
[327917792,1716625869793,-500.0,0.00026575,9]
[327917793,1716625869802,-500.0,0.00026575,9]
[327917794,1716625869812,-537.15,0.00026575,9]
[327917795,1716625869824,-397.22108399,0.00026575,9]
[327917796,1716625869834,-500.0,0.00026575,9]
[327917797,1716625869843,-500.0,0.00026575,9]
[327917798,1716625869852,-500.0,0.00026575,9]
[327917799,1716625869863,-194.16149793,0.00026575,9]
[327917800,1716625869872,-570.39,0.00026575,9]
[327917801,1716625869881,-500.0,0.00026575,9]
[327917802,1716625869890,-500.0,0.00026575,9]
[327917803,1716625869900,-500.0,0.00026575,9]
[327917804,1716625869910,-500.0,0.00026575,9]
[327917805,1716625869921,-500.0,0.00026575,9]
[327917806,1716625869930,-500.0,0.00026575,9]
[327917807,1716625869939,-500.0,0.00026575,9]
[327917808,1716625869948,-500.0,0.00026575,9]
[327917809,1716625869958,-500.0,0.00026575,9]
[327917810,1716625869967,-500.0,0.00026575,9]
[327917811,1716625869976,-500.0,0.00026575,9]
[327917812,1716625869985,-721.25,0.00026575,9]
[327917813,1716625869994,-500.0,0.00026575,9]
[327917814,1716625870004,-500.0,0.00026575,9]
[327917815,1716625870014,-964.17,0.00026575,9]
[327917816,1716625870023,-500.0,0.00026575,9]
[327917817,1716625870032,-536.36,0.00026575,9]
[327917818,1716625870042,-518.8494937,0.00026575,2]
[327917819,1716625870051,-500.0,0.00026575,9]
[327917820,1716625870061,-500.0,0.00026575,9]
[327917821,1716625870070,-500.0,0.00026575,9]
[327917822,1716625870080,-554.71,0.00026575,9]
[327917823,1716625870090,-709.62,0.00026575,9]
[327917824,1716625870103,-570.57,0.00026575,9]
[327917825,1716625870112,-500.0,0.00026575,9]
[327917826,1716625870121,-526.11,0.00026575,9]
[327917827,1716625870131,-505.15284996,0.00026575,9]
[327917828,1716625870143,-547.14,0.00026575,9]
[327917829,1716625870152,-521.18,0.00026575,9]
[327917830,1716625870162,-571.92,0.00026575,9]
[327917831,1716625870171,-500.0,0.00026575,9]
[327917832,1716625870182,-503.18,0.00026575,9]
[327917833,1716625870191,-500.0,0.00026575,9]
[327917834,1716625870200,-500.0,0.00026575,9]
[327917835,1716625870209,-2441.44,0.00026575,9]
[327917836,1716625870219,-3812.61,0.00026575,9]
[327917837,1716625870228,-500.0,0.00026575,9]
[327917838,1716625870237,-500.0,0.00026575,9]
[327917839,1716625870247,-500.0,0.00026575,9]
[327917840,1716625870256,-545.2,0.00026575,9]
[327917841,1716625870265,-500.0,0.00026575,9]
[327917842,1716625870274,-500.0,0.00026575,9]
[327917843,1716625870284,-500.0,0.00026575,9]
[327917844,1716625870294,-500.0,0.00026575,9]
[327917845,1716625870302,-500.0,0.00026575,9]
[327917846,1716625870311,-500.0,0.00026575,9]
[327917847,1716625870321,-818.85,0.00026575,9]
[327917848,1716625870330,-512.82,0.00026575,9]
[327917849,1716625870340,-500.0,0.00026575,9]
[327917850,1716625870349,-500.0,0.00026575,9]
[327917851,1716625870359,-500.0,0.00026575,9]
[327917852,1716625870368,-699.92,0.00026575,9]
[327917853,1716625870378,-625.69,0.00026575,9]
[327917854,1716625870387,-1637.53,0.00026575,9]
[327917855,1716625870397,-500.0,0.00026575,9]
[327917856,1716625870407,-500.0,0.00026575,9]
[327917857,1716625870416,-500.0,0.00026575,9]
[327917858,1716625870427,-500.0,0.00026575,9]
[327917859,1716625870436,-692.07,0.00026575,9]
[327917860,1716625870445,-1647.0,0.00026575,9]
[327917861,1716625870454,-500.0,0.00026575,9]
[327917862,1716625870463,-500.0,0.00026575,9]
[327917863,1716625870552,-500.0,0.00026575,9]
[327917864,1716625870562,-500.0,0.00026575,9]
[327917865,1716625870572,-500.0,0.00026575,9]
[327917866,1716625870582,-1590.4,0.00026575,9]
[327917867,1716625870591,-500.0,0.00026575,9]
[327917868,1716625870600,-608.21,0.00026575,9]
[327917869,1716625870610,-500.0,0.00026575,9]
[327917870,1716625870620,-500.0,0.00026575,9]
[327917871,1716625870629,-4026.36,0.00026575,9]
[327917872,1716625870638,-250.0,0.00026575,9]
[327917873,1716625870647,-509.49,0.00026575,9]
[327917874,1716625870657,-500.0,0.00026575,9]
[327917875,1716625870667,-718.05,0.00026575,9]
[327917876,1716625870678,-500.0,0.00026575,9]
[327917877,1716625870687,-4651.21,0.00026575,9]
[327917878,1716625870696,-500.0,0.00026575,9]
[327917879,1716625870706,-807.26,0.00026575,9]
[327917880,1716625870716,-951.39,0.00026575,9]
[327917881,1716625870725,-866.31,0.00026575,9]
[327917882,1716625870735,-1651.56,0.00026575,9]
[327917883,1716625870745,-500.0,0.00026575,9]
[327917884,1716625870754,-500.0,0.00026575,9]
[327917885,1716625870764,-500.0,0.00026575,9]
[327917886,1716625870774,-728.56,0.00026575,9]
[327917887,1716625870783,-500.0,0.00026575,9]
[327917888,1716625870793,-5083.02,0.00026575,9]
[327917889,1716625870802,-500.0,0.00026575,9]
[327917890,1716625870811,-500.0,0.00026575,9]
[327917891,1716625870826,-334.14504298,0.00026575,9]
[327917892,1716625870836,-606.33,0.00026575,9]
[327917893,1716625870845,-500.0,0.00026575,9]
[327917894,1716625870854,-270.42082189,0.00026575,9]
[327917895,1716625870863,-500.0,0.00026575,9]
[327917896,1716625870873,-160.0,0.00026594,11]
[327917897,1716625870882,-2045.94356603,0.000266,2]
[327917898,1716625870891,-150.0,0.00026615,2]
[327917899,1716625870902,-151.0,0.000267,2]
[327917900,1716625870911,-640.29560281,0.000267,4]
[327917901,1716625870921,-154.84515485,0.0002673,2]
[327917902,1716625870930,-25054.27994619,0.00026783,2]
[327917903,1716625870939,-160.0,0.00026848,12]
[327917904,1716625870949,-528.15,0.00026849,10]
[327917905,1716625870958,-341.00796816,0.00026849,10]
[327917906,1716625870968,-659.81,0.00026849,10]
[327917907,1716625870978,-500.0,0.00026849,10]
[327917908,1716625870987,-500.0,0.00026849,10]
[327917909,1716625870997,-768.52,0.00026849,10]
[327917910,1716625871006,-500.0,0.00026849,10]
[327917911,1716625871015,-500.0,0.00026849,10]
[327917912,1716625871024,-500.0,0.00026849,10]
[327917913,1716625871033,-500.0,0.00026849,10]
[327917914,1716625871043,-500.0,0.00026849,10]
[327917915,1716625871053,-500.0,0.00026849,10]
[327917916,1716625871062,-500.0,0.00026849,10]
[327917917,1716625871071,-500.0,0.00026849,10]
[327917918,1716625871081,-500.0,0.00026849,10]
[327917919,1716625871091,-500.0,0.00026849,10]
[327917920,1716625871101,-500.0,0.00026849,10]
[327917921,1716625871111,-500.0,0.00026849,10]
[327917922,1716625871120,-500.0,0.00026849,10]
[327917923,1716625871129,-500.0,0.00026849,10]
[327917924,1716625871138,-537.15,0.00026849,10]
[327917925,1716625871147,-500.0,0.00026849,10]
[327917926,1716625871156,-500.0,0.00026849,10]
[327917927,1716625871166,-500.0,0.00026849,10]
[327917928,1716625871176,-570.39,0.00026849,10]
[327917929,1716625871185,-247.05645397,0.00026849,10]
[327917930,1716625871194,-500.0,0.00026849,10]
[327917931,1716625871205,-500.0,0.00026849,10]
[327917932,1716625871215,-500.0,0.00026849,10]
[327917933,1716625871224,-500.0,0.00026849,10]
[327917934,1716625871234,-500.0,0.00026849,10]
[327917935,1716625871243,-500.0,0.00026849,10]
[327917936,1716625871252,-262.73448708,0.00026849,10]
[327917937,1716625871262,-500.0,0.00026849,10]
[327917938,1716625871272,-500.0,0.00026849,10]
[327917939,1716625871282,-500.0,0.00026849,10]
[327917940,1716625871293,-721.25,0.00026849,10]
[327917941,1716625871302,-500.0,0.00026849,10]
[327917942,1716625871312,-500.0,0.00026849,10]
[327917943,1716625871321,-964.17,0.00026849,10]
[327917944,1716625871331,-500.0,0.00026849,10]
[327917945,1716625871341,-536.36,0.00026849,10]
[327917946,1716625871352,-500.0,0.00026849,10]
[327917947,1716625871362,-500.0,0.00026849,10]
[327917948,1716625871371,-500.0,0.00026849,10]
[327917949,1716625871383,-554.71,0.00026849,10]
[327917950,1716625871392,-709.62,0.00026849,10]
[327917951,1716625871401,-570.57,0.00026849,10]
[327917952,1716625871410,-500.0,0.00026849,10]
[327917953,1716625871419,-526.11,0.00026849,10]
[327917954,1716625871430,-547.14,0.00026849,10]
[327917955,1716625871439,-521.18,0.00026849,10]
[327917956,1716625871448,-571.92,0.00026849,10]
[327917957,1716625871458,-500.0,0.00026849,10]